Cogmind - Beta 12 X4 @@@ ROGUE MODE // 2023.01.30 @ 19:35:17 Player: kasaphescent Result: Destroyed by G-47 Trooper with Particle Gun Performance ------------- Evolutions (2) 1000 Regions Visited (4) 800 Robots Destroyed (32) 160 Value Destroyed (698) 698 Prototype IDs (0) 0 Alien Tech Used (0) 0 Bonus (320) 320 TOTAL SCORE: 2978 Bonus ------- Pacifist 200 High Alert Combat Kills 37 Follower Combat Kills 201 Friendly Fire -118 Cogmind --------- Core Integrity 0/550 Matter 206/300 Energy 100/100 System Corruption 0% Temperature Cool (9) Movement Core (150) Ox2 Location -8/Materials Parts ------- > --- POWER (1) -------- (None) > --- PROPULSION (2) --- (None) > --- UTILITY (6) ------ Small Storage Unit Visual Processing Unit Terrain Scan Processor > --- WEAPON (2) ------- Mace > --- INVENTORY (8) ---- Ion Engine Flight Unit Light Assault Rifle Improved Grenade Launcher Datajack Heavy Hammer Peak State ------------ > --- POWER ------------ (None) > --- PROPULSION ------- Flight Unit Flight Unit > --- UTILITY ---------- Small Storage Unit Visual Processing Unit Terrain Scan Processor Core Shielding > --- WEAPON ----------- Rocket Launcher Mace > --- INVENTORY -------- Ion Engine Wheel Improved Hover Unit Improved Hover Unit Light Assault Rifle Datajack Heavy Hammer [Rating: 13] Favorites ----------- Power Light Ion Engine Engine Light Ion Engine Propulsion Improved Hover Unit Treads Light Treads Wheel Wheel Hover Unit Improved Hover Unit Flight Unit Flight Unit Utility Small Storage Unit Storage Small Storage Unit Processor Targeting Computer Protection Core Shielding Weapon Light Assault Rifle Energy Gun Small Laser Ballistic Gun Light Assault Rifle Launcher Rocket Launcher Impact Weapon Heavy Hammer Build | -11 -10 -9 -9 -8 ------- Run | Scr Mat Mat Sto Mat Slots Evolved 4 | . . 2 . 2 Power . | . . . . . Propulsion . | . . . . . Utility 4 | . . 2 . 2 Weapon . | . . . . . Parts Attached 36 | 6 5 1 16 8 Power 4 | 1 . 1 2 . Engine 4 | 1 . 1 2 . Core . | . . . . . Reactor . | . . . . . Propulsion 16 | 2 4 . 6 4 Treads 1 | 1 . . . . Leg . | . . . . . Wheel 1 | 1 . . . . Hover 11 | . 4 . 4 3 Flight 3 | . . . 2 1 Utility 5 | 1 1 . 3 . Device . | . . . . . Storage 1 | 1 . . . . Processor 3 | . 1 . 2 . Hackware . | . . . . . Protection 1 | . . . 1 . Artifact . | . . . . . Weapon 11 | 2 . . 5 4 Energy Gun 2 | 1 . . 1 . Energy Cannon . | . . . . . Ballistic Gun 2 | 1 . . 1 . Ballistic Cannon . | . . . . . Launcher 2 | . . . . 2 Special Weapon . | . . . . . Impact Weapon 5 | . . . 3 2 Slashing Weapon . | . . . . . Piercing Weapon . | . . . . . Special Melee Weapon . | . . . . . Unidentified Prototypes . | . . . . . Parts Lost 13 | . . . 6 7 Power 1 | . . . 1 . Propulsion 8 | . . . 4 4 Utility 1 | . . . . 1 Weapon 3 | . . . 1 2 Highest Loss Streak 3 | . . . 3 3 To Critical Strikes 1 | . . . 1 . Average Slot Usage (%) 74 | . 93 77 76 55 Engine 9 | . 14 11 10 . Hover 18 | . 26 22 19 3 Flight 2 | . . . 1 10 Storage 11 | . 14 11 11 9 Processor 14 | . 8 11 17 18 Protection 1 | . . . 2 4 Energy Gun 5 | . 14 11 2 . Ballistic Gun 6 | . 14 11 3 . Impact Weapon 5 | . . . 7 9 Naked Turns . | . . . . . Heaviest Build 14 | 10 10 14 14 8 Greatest Support 14 | 10 14 14 14 14 Greatest Overweight (x) 4 | 1 1 . 4 . Average Overweight (x) . | . . . . . Largest Inventory Capacity 8 | 8 8 8 8 8 Average Capacity 7 | 7 8 8 8 8 Most Carried 8 | 6 8 8 8 8 Average Carried 6 | 3 6 8 6 7 Final Capacity 8 | 8 8 8 8 8 Final Carried 8 | 6 8 8 8 6 Class Distribution -------------------- 82% | Mutant 17% | Commander-Mutant Dominant Class ---------------- Mutant | -10/Materials Mutant | -9/Materials Mutant | -9/Storage Mutant | -8/Materials Resources | -11 -10 -9 -9 -8 ----------- Run | Scr Mat Mat Sto Mat Matter Collected 564 | 221 . 119 151 73 Remotely . | . . . . . Salvage Created 853 | . . 330 380 143 Parts 47 | . . 23 13 11 Haulers Intercepted 1 | . . . 1 . Recyclers Shooed 1 | . . . . 1 Parts Field Recycled . | . . . . . Retrieved Matter . | . . . . . Parts Self-Destructed . | . . . . . Prevented . | . . . . . Kills | -11 -10 -9 -9 -8 ------- Run | Scr Mat Mat Sto Mat Combat Hostiles Destroyed 26 | . . 9 9 8 Melee 5 | . . . 5 . Guns 11 | . . 9 2 . AOE 8 | . . . . 8 Classes Destroyed 8 | . . 3 2 3 Worker 2 | . . . 1 1 Hauler 1 | . . . 1 . Recycler 1 | . . . . 1 Watcher 1 | . . . . 1 Swarmer 14 | . . 3 4 7 Grunt 8 | . . 5 3 . Sentry 4 | . . 1 3 . Hunter 1 | . . . . 1 Best Kill Streak 4 | . . 4 3 4 Combat Bots Only 4 | . . 4 2 4 Max Kills in Single Turn 3 | . . 1 1 3 Gunslinging . | . . . . . Exploded 3 | . . . . 3 Melee 1 | . . . 1 . Uniques/NPCs Destroyed . | . . . . . Combat | -11 -10 -9 -9 -8 -------- Run | Scr Mat Mat Sto Mat Damage Taken 1687 | . 22 215 466 984 Core 780 | . . 41 186 553 Absorbed by Shields . | . . . . . Redirected to Shielding 50 | . . . 5 45 Core Remaining (%) 81 | 100 100 . 43 . Volleys Fired 40 | . . 20 11 9 Largest 2 | . . 2 2 1 Hottest 60 | . . 60 60 33 Shots Fired 64 | . . 40 15 9 Gun 55 | . . 40 15 . Cannon . | . . . . . Launcher 9 | . . . . 9 Special . | . . . . . Kinetic 31 | . . 20 11 . Thermal 24 | . . 20 4 . Explosive 9 | . . . . 9 Electromagnetic . | . . . . . Robot Hit Streak 16 | . . 16 5 6 Robot Miss Streak 4 | . . 1 1 4 Penetration Max . | . . . . . Secondary Targets . | . . . . . Shots Hit Robots 79 | . . 30 29 20 Core Hits 40 | . . 18 11 11 Critical Kills . | . . . . . Critical Parts Destroyed 1 | . . . . 1 Critical Strikes 1 | . . . . 1 Smash 1 | . . . . 1 Melee Attacks 58 | . . . 34 24 Impact 58 | . . . 34 24 Slashing . | . . . . . Piercing . | . . . . . Sneak Attacks 2 | . . . 1 1 Combat Hostiles . | . . . . . Follow-up Attacks 1 | . . . . 1 Damage Inflicted 2672 | . . 305 809 1558 Guns 427 | . . 305 122 . Cannons . | . . . . . Explosions 959 | . . . . 959 Melee 1286 | . . . 687 599 Ramming . | . . . . . Kinetic 191 | . . 115 76 . Thermal 342 | . . 190 46 106 Explosive 853 | . . . . 853 Electromagnetic . | . . . . . Impact 1286 | . . . 687 599 Slashing . | . . . . . Piercing . | . . . . . Highest Corruption . | . . . . . Average Corruption . | . . . . . Corruption Purged . | . . . . . Corruption Blocked . | . . . . . Overload Shots . | . . . . . Overflow Damage 339 | . . . 106 233 Projectiles . | . . . . . Explosions 104 | . . . . 104 Melee 235 | . . . 106 129 Knockbacks 3 | . . . 1 2 Impact 3 | . . . 1 2 Kinetic . | . . . . . Secondary . | . . . . . Self-Inflicted Damage 129 | . . . . 129 Shots 2 | . . . . 2 Rammed 1 | . . . . 1 Targets Rammed 1 | . . . . 1 Kicked . | . . . . . Crushed . | . . . . . Highest Temperature 87 | . . 87 65 22 Average Temperature 31 | . . 33 28 13 Received Heat Transfer 489 | . 12 96 102 279 Siege Activations . | . . . . . Robots Corrupted . | . . . . . Combat Hostiles . | . . . . . Parts Fried 3 | . . . 1 2 Impact Corruptions 11 | . . . 6 5 Robots Melted . | . . . . . Combat Hostiles . | . . . . . Parts Melted 1 | . . 1 . . Heat Transferred 575 | . . 425 100 50 Parts Sabotaged . | . . . . . Parts Stolen . | . . . . . Parts Stripped . | . . . . . Power Chain Reactions . | . . . . . Missiles Intercepted . | . . . . . Alert | -11 -10 -9 -9 -8 ------- Run | Scr Mat Mat Sto Mat Peak Influence 873 | . 48 280 509 873 Initial 143 | . . 20 118 143 Average 225 | . 7 103 314 419 Maximum Alert Level 3 | . . 1 2 3 Low Security (%) 55 | 100 100 88 22 36 Level 1 29 | . . 11 56 22 Level 2 9 | . . . 21 6 Level 3 5 | . . . . 34 Level 4 . | . . . . . Level 5 . | . . . . . High Security . | . . . . . Max Security . | . . . . . Squads Dispatched 5 | . 1 . 2 2 Investigation 1 | . 1 . . . Extermination . | . . . . . Reinforcement 3 | . . . 1 2 Assault . | . . . . . Garrison 1 | . . . 1 . Intercept . | . . . . . Searches Triggered . | . . . . . Construction Impeded . | . . . . . Haulers Reinforced . | . . . . . Active Scanning Responses . | . . . . . Cargo Convoy Interrupts . | . . . . . Stealth | -11 -10 -9 -9 -8 --------- Run | Scr Mat Mat Sto Mat Distress Signals 7 | . . 1 5 1 Communications Jammed . | . . . . . Distress Signals . | . . . . . Times Spotted 65 | . 4 13 20 28 Peak Tracking Total 14 | . 4 9 4 14 Tactical Retreats 7 | . 1 2 1 3 Traps | -11 -10 -9 -9 -8 ------- Run | Scr Mat Mat Sto Mat Traps Triggered 1 | . 1 . . . Indirectly . | . . . . . Trap Hack Attempts . | . . . . . Triggered . | . . . . . Disarmed . | . . . . . Reprogrammed . | . . . . . Reused . | . . . . . Traps Extracted . | . . . . . Installed . | . . . . . Triggered 1 | . . . . 1 Machines | -11 -10 -9 -9 -8 ---------- Run | Scr Mat Mat Sto Mat Machines Disabled 5 | . . . 2 3 Max in Single Turn 1 | . . . 1 1 Garrison Access 1 | . . . 1 . Machines Sabotaged . | . . . . . Overloaded Fab Kills . | . . . . . Hacking | -11 -10 -9 -9 -8 --------- Run | Scr Mat Mat Sto Mat Machines Accessed 8 | . 3 . 2 3 Terminals 6 | . 3 . . 3 Fabricators . | . . . . . Repair Stations . | . . . . . Recycling Units 1 | . . . 1 . Scanalyzers . | . . . . . Garrison Access 1 | . . . 1 . Total Hacks 15 | . 6 . 3 6 Successful 7 | . 2 . 3 2 Failed 8 | . 4 . . 4 Catastrophic 1 | . . . . 1 Database Lockouts . | . . . . . Manual 10 | . 6 . . 4 Terminals 12 | . 6 . . 6 Fabricators . | . . . . . Repair Stations . | . . . . . Recycling Units 2 | . . . 2 . Scanalyzers . | . . . . . Garrison Access 1 | . . . 1 . Terminal Hacks 1 | . . . . 1 Unreport Threat 1 | . . . . 1 Fabricator Hacks . | . . . . . Repair Station Hacks . | . . . . . Recycling Unit Hacks 2 | . . . 2 . Report Inventory 1 | . . . 1 . Retrieve Components 1 | . . . 1 . Scanalyzer . | . . . . . Garrison Access Hacks 1 | . . . 1 . Seal Access 1 | . . . 1 . Unauthorized Hacks 3 | . 2 . . 1 Terminals 3 | . 2 . . 1 Track 2 | . 2 . . . Botnet 1 | . . . . 1 Fabricators . | . . . . . Repair Stations . | . . . . . Recycling Units . | . . . . . Scanalyzers . | . . . . . Garrison Access . | . . . . . Data Cores Recovered . | . . . . . Used . | . . . . . Hacking Detections 6 | . 3 . . 3 Full Trace Events . | . . . . . Feedback Events . | . . . . . Feedback Blocked . | . . . . . Robot Schematics Acquired . | . . . . . Robots Built . | . . . . . Authchips . | . . . . . Time . | . . . . . Total Robot Build Rating . | . . . . . Part Schematics Acquired . | . . . . . Parts Built . | . . . . . Authchips . | . . . . . Time . | . . . . . Total Part Build Rating . | . . . . . Parts Repaired . | . . . . . Time . | . . . . . Parts Recycled . | . . . . . Recycled Matter . | . . . . . Retrieved Matter . | . . . . . Retrieved Components 2 | . . . 2 . Parts Scanalyzed . | . . . . . Part Schematics Acquired . | . . . . . Parts Damaged . | . . . . . Bothacking | -11 -10 -9 -9 -8 ------------ Run | Scr Mat Mat Sto Mat Used RIF Installer . | . . . . . Robots Hacked . | . . . . . Non-combat . | . . . . . Combat . | . . . . . Robot Hacks Applied . | . . . . . Relay Couplers Released . | . . . . . Fabnet Peak Effective % . | . . . . . Robots Rewired . | . . . . . Allies Hacked . | . . . . . Hacks Repelled . | . . . . . Allies | -11 -10 -9 -9 -8 -------- Run | Scr Mat Mat Sto Mat Total Allies 10 | . . . 10 . Largest Group 10 | . . . 10 . Highest-Rated Group 88 | . . . 88 . Highest-Rated Ally 16 | . . . 16 . Total Orders . | . . . . . Ally Attacks 60 | . . . 60 . Total Damage 489 | . . . 489 . Kills 7 | . . . 7 . Allies Corrupted . | . . . . . Allies Melted . | . . . . . Intel | -11 -10 -9 -9 -8 ------- Run | Scr Mat Mat Sto Mat Robot Analysis Total . | . . . . . Derelict Logs Recovered . | . . . . . Drone Launches . | . . . . . Drone Recoveries . | . . . . . Exploration | -11 -10 -9 -9 -8 ------------- Run | Scr Mat Mat Sto Mat Turns Passed 1134 | 54 143 288 450 199 Spaces Moved 1055 | 45 226 199 371 214 Core 7 | 6 . . 1 . Treads . | . . . . . Legs . | . . . . . Wheels 46 | 39 7 . . . Hover 792 | . 219 199 329 45 Flight 210 | . . . 41 169 Fastest Speed 37 | 50 56 56 37 37 Average Speed 54 | 81 57 56 55 41 Slowest Speed 280 | 100 120 56 280 60 Overloaded Moves . | . . . . . Propulsion Burnouts . | . . . . . Robots Hopped 2 | . . . . 2 Cave-ins Triggered . | . . . . . Exploration Rate (%) 31 | 3 43 26 53 32 Regions Visited 4 Branch Regions 1 Pre-discovered Areas . | . . . . . Known Exits Taken . | . . . . . Unknown Exits Taken 4 | 1 1 1 1 . Scrap Searched . | . . . . . Spaces Dug 4 | . . . 2 2 Terrain Destroyed 105 | . . . 2 103 Melee 2 | . . . 2 . Projectile . | . . . . . AOE 103 | . . . . 103 Terrain Rammed . | . . . . . Walls Destroyed . | . . . . . Machines Disabled . | . . . . . Actions | -11 -10 -9 -9 -8 --------- Run | Scr Mat Mat Sto Mat Total 1458 | 59 242 340 545 272 Wait 234 | 3 . 118 99 14 Move 1047 | 44 225 198 370 210 Hop 2 | . . . . 2 Pick Up 16 | 6 4 1 3 2 Fast Attach 20 | 6 3 . 10 1 Attach 11 | . . . 6 5 Detach 10 | . 2 . 6 2 Swap 5 | . 2 1 . 2 Drop 15 | . 6 2 6 1 Fire 40 | . . 20 11 9 Melee 57 | . . . 34 23 Ram 1 | . . . . 1 Kick . | . . . . . Crush . | . . . . . Escape Stasis . | . . . . . Rewire . | . . . . . Trap . | . . . . . Miscellaneous . | . . . . . Route ------- -11/Scrapyard -10/Materials (discovered 2 exits: [*Mat] / [*Min]) -9/Materials -9/Storage -8/Materials History --------- Turn | Location | Event 8 | -11/Scrapyard | Discovered new exit (range 15) 55 | -11/Scrapyard | Entered Materials 126 | -10/Materials | Discovered new exit (range 6) 186 | -10/Materials | Discovered new exit (range 14) 198 | -10/Materials | Entered another Materials area 198 | -9/Materials | Evolved 2 slots: Utility x2 314 | -9/Materials | Build established: Mutant 416 | -9/Materials | Discovered new exit (range 15) 486 | -9/Materials | Entered Storage 520 | -9/Storage | Assisted by bots powering up and referring to "LRC-V3" 571 | -9/Storage | Garrison activated, responded to threat 762 | -9/Storage | Lost 3 parts (1p2n) 776 | -9/Storage | Core integrity fell below 50% 874 | -9/Storage | Discovered new exit (range 16) 936 | -9/Storage | Entered Materials 936 | -8/Materials | Evolved 2 slots: Utility x2 1078 | -8/Materials | Core integrity fell below 50% 1121 | -8/Materials | Lost 3 parts (2n1w) 1130 | -8/Materials | Core integrity fell below 20% 1135 | -8/Materials | Destroyed by G-47 Trooper with Particle Gun Last Messages --------------- 01068_ Flight Unit destroyed. 01076_ Acquired Hvy. Hammer. 01079_ Destroyed Flight Unit. 01079_ S-10 Pest destroyed. 01083_ K-01 Serf destroyed. 01084_ Imp. Hover Unit destroyed. 01085_ S-10 Pest destroyed. 01086_ The unstable cave ceiling collapses. 01087_ S-10 Pest destroyed. 01088_ The unstable cave ceiling collapses. 01089_ Destroyed Imp. Heat Sink. 01090_ Rocket Launcher destroyed. 01090_ Critical hit (Burn: +37). 01103_ K-01 Serf collects debris. 01110_ Acquired Imp. Grenade Launcher. 01123_ Imp. Hover Unit destroyed. 01129_ Critical hit (Burn: +37). 01131_ Mace follow-up attack on G-47 Trooper. 01131_ Hvy. Hammer destroyed. 01134_ Slammed into G-47 Trooper. Map ----- +----------------------------------------------------+ | ?????????????????## # # ############ | | ?????????????##### # | | ??????????##?# # | | ??????????# # * #????# | | ??????????# " ! ! #????# ##### | | ??????????# # =%!! # #????# #???? | | ??????????# ?# ! # #????#" """ #???? | | ?????????## #####/#### ####?????#T ! """ #???? | | ????###+## #### # #?????#" """ #???? | | ??# + """ #?????# #???? | | ??# # "T" #?????# = ! #???? | | ??# ##### ### #?? #?????######## +???? | | ?????????####???# # #????????????? #???? | | ????????????????# + """ #????????????? #???? | | ????????????????# # """ #????????????? #???? | | ????????????????# #?? """ =#?????????????? #???? | | ????????????##### #???? #?????????????? #???? | | ????????????+ #??????###?????????????? #???? | | ????????????# #######????????????????? +???? | | ????????????# #?????????????????? #???? | | ??????????# #?????????????????H #???? | | ??????????# #####+###+## #?????????????????? #???? | | ??????????#?# ! ! ## ########???????????##???? | | ????????????# ] ##g# =#????????????????? | | ????????????# ##l#g[ #????????????????? | | ????????????# + m@g #????????????????? | | ????????????# / ####g "Y" #????????????????? | | ????????????# * #??# """ #????????????????? | | ????????????# #??# #????????????????? | | ????????????# #??########????????????????? | | ????????????##########???????????????????????????? | | ?????????????????????????????????????????????????? | | ?????????????????????????????????????????????????? | | ?????????????????????????????????????????????????? | | | | | | | | | | | | | | | | | | | | | | | | | | | | | | | | | +----------------------------------------------------+ Best States ------------- Heat Dissipation 31 Energy Generation 12 Energy Capacity 265 Matter Stores 300 Matter Capacity 300 Sight Range 18 Terrain Scan Density 85 Core Shielding 20 Evasion (%) 62 Targeting Accuracy 5 Item Schematics ----------------- None Robot Schematics ------------------ None Fabricated ------------ Nothing Alien Tech Used ----------------- None Achievements -------------- Batter Up Challenges ------------ None Game ------ Seed LongswordBarrageRouter Manual? 0 Play Time 00:16:21 Cumulative 303.1 hours Start 2023.01.30 @ 19:19:24 End 2023.01.30 @ 19:35:17 Sessions 1 Manual Loads 0 Difficulty Rogue Special Mode None Game No. 202 Rogue 202 Adventurer 0 Explorer 0 Win Type - Total 18 Types 15/0/2/1/0/0/0/0/0 Lore% 68 Gallery% 84 Achievement% 65 Wizard Run 0 Options --------- ASCII 0 Keyboard 1 Movement Numpad Keybinds 0 Fullscreen 2 Font 18/SmallcapsGlow Map View 76x50 Tactical HUD 1 Map Filters NONE Filters NONE Steam 1 RUN: 6277d972-62ff-4bf6-ba64-575ed2b1d86f